[Event "Titled Tuesday Blitz December 06 Early 2022"]
[White "Golizadeh, Asghar"]
[Black "Kuchava, Ana"]
[WhiteFideId "12505269"]
[BlackFideId "13605348"]
[WhiteElo "2403"]
[BlackElo "2001"]
[Result "1/2-1/2"]
[Round "05"]
[TimeControl "180+1"]
[Date "2022.12.07"]
[WhiteClock "0:00:03"]
[BlackClock "0:00:07"]

1. e4 {[%clk 0:01:41]}  c5 {[%clk 0:02:58]} 2. Nc3 {[%clk 0:01:40]}  Nc6 {[%clk 0:02:57]} 3. Bb5 {[%clk 0:01:40]}  Nd4 {[%clk 0:02:56]} 4. Nf3 {[%clk 0:01:41]}  Nxb5 {[%clk 0:02:51]} 5. Nxb5 {[%clk 0:01:40]}  a6 {[%clk 0:02:52]} 6. Nc3 {[%clk 0:01:40]}  b5 {[%clk 0:02:52]} 7. d4 {[%clk 0:01:38]}  cxd4 {[%clk 0:02:46]} 8. Nxd4 {[%clk 0:01:38]}  Bb7 {[%clk 0:02:47]} 9. a3 {[%clk 0:01:38]}  d6 {[%clk 0:02:43]} 10. O-O {[%clk 0:01:38]}  Nf6 {[%clk 0:02:42]} 11. Qe2 {[%clk 0:01:37]}  g6 {[%clk 0:02:39]} 12. Bg5 {[%clk 0:01:34]}  Bg7 {[%clk 0:02:39]} 13. Rad1 {[%clk 0:01:34]}  Qb6 {[%clk 0:02:36]} 14. Nb3 {[%clk 0:01:03]}  O-O {[%clk 0:02:34]} 15. Kh1 {[%clk 0:01:01]}  Rac8 {[%clk 0:02:26]} 16. Be3 {[%clk 0:00:59]}  Qc7 {[%clk 0:02:13]} 17. f3 {[%clk 0:00:57]}  Nd7 {[%clk 0:02:03]} 18. Bd4 {[%clk 0:00:54]}  Ne5 {[%clk 0:01:59]} 19. Nd2 {[%clk 0:00:37]}  Nc4 {[%clk 0:01:54]} 20. Bxg7 {[%clk 0:00:33]}  Kxg7 {[%clk 0:01:55]} 21. Nxc4 {[%clk 0:00:32]}  Qxc4 {[%clk 0:01:47]} 22. Qf2 {[%clk 0:00:32]}  a5 {[%clk 0:01:42]} 23. Qh4 {[%clk 0:00:18]}  b4 {[%clk 0:01:33]} 24. Qxe7 {[%clk 0:00:17]}  Rc7 {[%clk 0:01:31]} 25. Qxd6 {[%clk 0:00:16]}  bxc3 {[%clk 0:01:30]} 26. Qe5+ {[%clk 0:00:16]}  Kg8 {[%clk 0:01:29]} 27. b3 {[%clk 0:00:14]}  Qc5 {[%clk 0:01:27]} 28. Qf6 {[%clk 0:00:15]}  Qxa3 {[%clk 0:01:25]} 29. Rd8 {[%clk 0:00:14]}  Rc6 {[%clk 0:01:19]} 30. Qh4 {[%clk 0:00:10]}  Rxd8 {[%clk 0:01:16]} 31. Qxd8+ {[%clk 0:00:09]}  Kg7 {[%clk 0:01:13]} 32. Qd4+ {[%clk 0:00:09]}  Kg8 {[%clk 0:01:08]} 33. Qd7 {[%clk 0:00:08]}  Qd6 {[%clk 0:01:04]} 34. Qxb7 {[%clk 0:00:07]}  Rc7 {[%clk 0:00:51]} 35. Qd5 {[%clk 0:00:07]}  Qb6 {[%clk 0:00:41]} 36. Qd8+ {[%clk 0:00:05]}  Kg7 {[%clk 0:00:42]} 37. Ra1 {[%clk 0:00:05]}  h5 {[%clk 0:00:37]} 38. Qd5 {[%clk 0:00:05]}  Rc5 {[%clk 0:00:33]} 39. Qd4+ {[%clk 0:00:05]}  Kh7 {[%clk 0:00:33]} 40. Rd1 {[%clk 0:00:06]}  Qb5 {[%clk 0:00:24]} 41. h3 {[%clk 0:00:06]}  Rc7 {[%clk 0:00:22]} 42. Qd8 {[%clk 0:00:06]}  Qc5 {[%clk 0:00:18]} 43. Qd4 {[%clk 0:00:05]}  Qb5 {[%clk 0:00:17]} 44. Qd3 {[%clk 0:00:05]}  Qb4 {[%clk 0:00:16]} 45. Kh2 {[%clk 0:00:05]}  a4 {[%clk 0:00:16]} 46. bxa4 {[%clk 0:00:05]}  Qxa4 {[%clk 0:00:16]} 47. Kg3 {[%clk 0:00:05]}  Qb4 {[%clk 0:00:14]} 48. Kf2 {[%clk 0:00:05]}  Qb2 {[%clk 0:00:13]} 49. Ke2 {[%clk 0:00:04]}  Ra7 {[%clk 0:00:12]} 50. Qd4 {[%clk 0:00:01]}  Qxc2+ {[%clk 0:00:10]} 51. Ke3 {[%clk 0:00:02]}  Ra2 {[%clk 0:00:11]} 52. Kf4 {[%clk 0:00:03]}  Qxg2 {[%clk 0:00:10]} 53. Ke5 {[%clk 0:00:04]}  Qg5+ {[%clk 0:00:09]} 54. Kd6 {[%clk 0:00:03]}  Ra6+ {[%clk 0:00:10]} 55. Kd7 {[%clk 0:00:04]}  Qf6 {[%clk 0:00:09]} 56. Qc4 {[%clk 0:00:02]}  Qb6 {[%clk 0:00:07]} 57. Qxf7+ {[%clk 0:00:01]}  Kh6 {[%clk 0:00:08]} 58. Qf8+ {[%clk 0:00:02]}  Kh7 {[%clk 0:00:07]} 59. Qf7+ {[%clk 0:00:02]}  Kh6 {[%clk 0:00:07]} 60. Qf8+ {[%clk 0:00:03]}  Kh7 {[%clk 0:00:07]} 61. Qf7+ {[%clk 0:00:03]} 1/2-1/2


[Site "https://www.chess.com"]

[Event "Titled Tuesday Blitz December 06 Early 2022"]
[White "Golubev, Mikhail"]
[Black "Bochnicka, Vladimir"]
[WhiteFideId "14100983"]
[BlackFideId "14943450"]
[WhiteElo "2374"]
[BlackElo "2239"]
[Result "1-0"]
[Round "05"]
[TimeControl "180+1"]
[Date "2022.12.07"]
[WhiteClock "0:00:41"]
[BlackClock "0:00:16"]

1. e4 {[%clk 0:03:00]}  c5 {[%clk 0:02:56]} 2. Nf3 {[%clk 0:03:00]}  Nc6 {[%clk 0:02:56]} 3. Nc3 {[%clk 0:02:59]}  e5 {[%clk 0:02:53]} 4. Bc4 {[%clk 0:02:57]}  Be7 {[%clk 0:02:54]} 5. d3 {[%clk 0:02:57]}  d6 {[%clk 0:02:53]} 6. Nd2 {[%clk 0:02:54]}  Bg5 {[%clk 0:02:52]} 7. h4 {[%clk 0:02:50]}  Bxd2+ {[%clk 0:02:50]} 8. Bxd2 {[%clk 0:02:48]}  Nf6 {[%clk 0:02:49]} 9. Bg5 {[%clk 0:02:21]}  h6 {[%clk 0:02:44]} 10. Bxf6 {[%clk 0:02:21]}  Qxf6 {[%clk 0:02:38]} 11. Nd5 {[%clk 0:02:21]}  Qd8 {[%clk 0:02:36]} 12. c3 {[%clk 0:02:15]}  Be6 {[%clk 0:02:30]} 13. Qf3 {[%clk 0:02:10]}  O-O {[%clk 0:02:22]} 14. g4 {[%clk 0:01:59]}  Rb8 {[%clk 0:02:14]} 15. g5 {[%clk 0:01:50]}  b5 {[%clk 0:01:51]} 16. Bb3 {[%clk 0:01:46]}  c4 {[%clk 0:01:08]} 17. dxc4 {[%clk 0:01:32]}  bxc4 {[%clk 0:01:09]} 18. Bxc4 {[%clk 0:01:32]}  hxg5 {[%clk 0:00:46]} 19. hxg5 {[%clk 0:01:32]}  Qxg5 {[%clk 0:00:45]} 20. Rh5 {[%clk 0:01:05]}  Bg4 {[%clk 0:00:29]} 21. Rxg5 {[%clk 0:00:47]}  Bxf3 {[%clk 0:00:30]} 22. Rg3 {[%clk 0:00:45]}  Na5 {[%clk 0:00:16]} 23. Nf6+ {[%clk 0:00:41]} 1-0


[Site "https://www.chess.com"]

[Event "Titled Tuesday Blitz December 06 Early 2022"]
[White "Gormally, Daniel W"]
[Black "Fecker, Noah"]
[WhiteFideId "406465"]
[BlackFideId "1334263"]
[WhiteElo "2553"]
[BlackElo "2291"]
[Result "1-0"]
[Round "05"]
[TimeControl "180+1"]
[Date "2022.12.07"]
[WhiteClock "0:00:36"]
[BlackClock "0:00:20"]

1. e4 {[%clk 0:02:59]}  e5 {[%clk 0:02:58]} 2. Nf3 {[%clk 0:02:59]}  Nc6 {[%clk 0:02:58]} 3. Bb5 {[%clk 0:02:59]}  Nf6 {[%clk 0:02:57]} 4. d3 {[%clk 0:02:59]}  Bc5 {[%clk 0:02:57]} 5. O-O {[%clk 0:02:58]}  O-O {[%clk 0:02:52]} 6. Bxc6 {[%clk 0:02:57]}  dxc6 {[%clk 0:02:52]} 7. Nxe5 {[%clk 0:02:58]}  Re8 {[%clk 0:02:50]} 8. Nf3 {[%clk 0:02:58]}  Bg4 {[%clk 0:02:49]} 9. h3 {[%clk 0:02:57]}  Bh5 {[%clk 0:02:49]} 10. Bf4 {[%clk 0:02:51]}  Qd7 {[%clk 0:02:48]} 11. Nbd2 {[%clk 0:02:49]}  Rad8 {[%clk 0:02:44]} 12. Qc1 {[%clk 0:02:44]}  h6 {[%clk 0:02:37]} 13. Be3 {[%clk 0:02:44]}  Bd6 {[%clk 0:02:34]} 14. Nd4 {[%clk 0:02:37]}  Bg6 {[%clk 0:02:04]} 15. N2f3 {[%clk 0:02:36]}  c5 {[%clk 0:02:03]} 16. Ne2 {[%clk 0:02:36]}  c4 {[%clk 0:02:02]} 17. Nf4 {[%clk 0:02:20]}  Bxf4 {[%clk 0:01:59]} 18. Bxf4 {[%clk 0:02:19]}  cxd3 {[%clk 0:02:00]} 19. cxd3 {[%clk 0:02:19]}  Qxd3 {[%clk 0:01:58]} 20. Qxc7 {[%clk 0:02:17]}  Rc8 {[%clk 0:01:28]} 21. Qa5 {[%clk 0:01:36]}  Qxe4 {[%clk 0:01:16]} 22. Bg3 {[%clk 0:01:31]}  a6 {[%clk 0:01:14]} 23. Rfe1 {[%clk 0:01:29]}  Qc6 {[%clk 0:01:13]} 24. Rxe8+ {[%clk 0:01:28]}  Rxe8 {[%clk 0:01:13]} 25. Ne5 {[%clk 0:01:29]}  Qc2 {[%clk 0:01:09]} 26. Qc3 {[%clk 0:01:20]}  Qxc3 {[%clk 0:01:06]} 27. bxc3 {[%clk 0:01:20]}  Be4 {[%clk 0:01:04]} 28. f3 {[%clk 0:01:18]}  Bd5 {[%clk 0:01:03]} 29. c4 {[%clk 0:01:19]}  Be6 {[%clk 0:01:01]} 30. Rb1 {[%clk 0:01:14]}  b5 {[%clk 0:00:58]} 31. cxb5 {[%clk 0:01:13]}  axb5 {[%clk 0:00:59]} 32. Rxb5 {[%clk 0:01:11]}  Bxa2 {[%clk 0:00:58]} 33. Ra5 {[%clk 0:01:09]}  Be6 {[%clk 0:00:58]} 34. Bf2 {[%clk 0:01:09]}  Nd5 {[%clk 0:00:55]} 35. Nd3 {[%clk 0:01:04]}  Rc8 {[%clk 0:00:54]} 36. Nc5 {[%clk 0:01:04]}  Nf4 {[%clk 0:00:44]} 37. Be3 {[%clk 0:01:00]}  Nd5 {[%clk 0:00:44]} 38. Bd2 {[%clk 0:00:53]}  Nc7 {[%clk 0:00:44]} 39. Bf4 {[%clk 0:00:49]}  Nd5 {[%clk 0:00:44]} 40. Nxe6 {[%clk 0:00:48]}  fxe6 {[%clk 0:00:43]} 41. Be5 {[%clk 0:00:48]}  Re8 {[%clk 0:00:34]} 42. Kf2 {[%clk 0:00:45]}  Kf7 {[%clk 0:00:34]} 43. f4 {[%clk 0:00:43]}  Ne7 {[%clk 0:00:34]} 44. Ra7 {[%clk 0:00:42]}  g6 {[%clk 0:00:27]} 45. Kf3 {[%clk 0:00:39]}  Kf8 {[%clk 0:00:21]} 46. Bd6 {[%clk 0:00:38]}  Kf7 {[%clk 0:00:21]} 47. Ke4 {[%clk 0:00:38]}  Kf6 {[%clk 0:00:21]} 48. Be5+ {[%clk 0:00:36]}  Kf7 {[%clk 0:00:21]} 49. Bd6 {[%clk 0:00:36]}  Kf6 {[%clk 0:00:21]} 50. Bxe7+ {[%clk 0:00:36]}  Rxe7 {[%clk 0:00:22]} 51. Rxe7 {[%clk 0:00:37]}  Kxe7 {[%clk 0:00:22]} 52. Ke5 {[%clk 0:00:38]}  Kf7 {[%clk 0:00:22]} 53. g4 {[%clk 0:00:38]}  Ke7 {[%clk 0:00:22]} 54. g5 {[%clk 0:00:37]}  h5 {[%clk 0:00:20]} 55. h4 {[%clk 0:00:36]} 1-0


[Site "https://www.chess.com"]

[Event "Titled Tuesday Blitz December 06 Early 2022"]
[White "Goroshkov, Maksym"]
[Black "Devaev, Alexander"]
[WhiteFideId "14142716"]
[BlackFideId "4169395"]
[WhiteElo "2258"]
[BlackElo "2225"]
[Result "0-1"]
[Round "05"]
[TimeControl "180+1"]
[Date "2022.12.07"]
[WhiteClock "0:00:32"]
[BlackClock "0:00:15"]

1. e4 {[%clk 0:03:00]}  c6 {[%clk 0:02:59]} 2. d4 {[%clk 0:03:00]}  d5 {[%clk 0:03:00]} 3. exd5 {[%clk 0:03:01]}  cxd5 {[%clk 0:03:01]} 4. c4 {[%clk 0:03:01]}  Nf6 {[%clk 0:03:00]} 5. Nc3 {[%clk 0:03:02]}  e6 {[%clk 0:03:01]} 6. Nf3 {[%clk 0:03:01]}  Bb4 {[%clk 0:03:01]} 7. Be2 {[%clk 0:03:01]}  dxc4 {[%clk 0:03:01]} 8. Bxc4 {[%clk 0:03:02]}  Nc6 {[%clk 0:03:02]} 9. O-O {[%clk 0:03:02]}  O-O {[%clk 0:03:02]} 10. Bg5 {[%clk 0:03:02]}  Bxc3 {[%clk 0:03:02]} 11. bxc3 {[%clk 0:03:02]}  Ne7 {[%clk 0:03:02]} 12. Bxf6 {[%clk 0:03:00]}  gxf6 {[%clk 0:03:03]} 13. Bd3 {[%clk 0:03:00]}  Qd6 {[%clk 0:02:58]} 14. Nd2 {[%clk 0:02:57]}  Ng6 {[%clk 0:02:47]} 15. Ne4 {[%clk 0:02:56]}  Qe7 {[%clk 0:02:48]} 16. Qf3 {[%clk 0:02:51]}  f5 {[%clk 0:02:48]} 17. Nc5 {[%clk 0:02:47]}  Rb8 {[%clk 0:02:47]} 18. Rfe1 {[%clk 0:02:38]}  b6 {[%clk 0:02:32]} 19. Nb3 {[%clk 0:02:36]}  Bb7 {[%clk 0:02:30]} 20. Qg3 {[%clk 0:02:36]}  Qf6 {[%clk 0:02:04]} 21. f3 {[%clk 0:02:16]}  Kh8 {[%clk 0:02:02]} 22. Nd2 {[%clk 0:02:12]}  Rg8 {[%clk 0:02:00]} 23. Bf1 {[%clk 0:02:10]}  Rbc8 {[%clk 0:01:56]} 24. c4 {[%clk 0:02:09]}  Qxd4+ {[%clk 0:01:54]} 25. Qf2 {[%clk 0:02:09]}  Qf6 {[%clk 0:01:50]} 26. Nb3 {[%clk 0:02:06]}  Rc7 {[%clk 0:01:17]} 27. Rad1 {[%clk 0:02:00]}  Nh4 {[%clk 0:01:14]} 28. Kh1 {[%clk 0:02:00]}  Ng6 {[%clk 0:01:11]} 29. Nd4 {[%clk 0:01:55]}  Ba6 {[%clk 0:01:04]} 30. Nb5 {[%clk 0:01:42]}  Bxb5 {[%clk 0:01:05]} 31. cxb5 {[%clk 0:01:43]}  Rgc8 {[%clk 0:01:05]} 32. a4 {[%clk 0:01:37]}  Kg7 {[%clk 0:01:04]} 33. Rd2 {[%clk 0:01:35]}  h5 {[%clk 0:01:01]} 34. Red1 {[%clk 0:01:35]}  h4 {[%clk 0:01:00]} 35. g3 {[%clk 0:01:21]}  Rh8 {[%clk 0:00:52]} 36. Kg1 {[%clk 0:01:20]}  Rh5 {[%clk 0:00:51]} 37. Rd8 {[%clk 0:01:16]}  Rh8 {[%clk 0:00:46]} 38. Rxh8 {[%clk 0:01:14]}  Kxh8 {[%clk 0:00:47]} 39. f4 {[%clk 0:01:10]}  Kg7 {[%clk 0:00:43]} 40. Bg2 {[%clk 0:01:01]}  hxg3 {[%clk 0:00:35]} 41. hxg3 {[%clk 0:01:02]}  Qc3 {[%clk 0:00:29]} 42. Bc6 {[%clk 0:01:00]}  Ne7 {[%clk 0:00:24]} 43. Bf3 {[%clk 0:00:56]}  Ng8 {[%clk 0:00:22]} 44. Rd8 {[%clk 0:00:53]}  Qc1+ {[%clk 0:00:20]} 45. Rd1 {[%clk 0:00:49]}  Qc3 {[%clk 0:00:18]} 46. Kg2 {[%clk 0:00:47]}  Nf6 {[%clk 0:00:16]} 47. Rd2 {[%clk 0:00:45]}  Qb3 {[%clk 0:00:15]} 48. Ra2 {[%clk 0:00:41]}  Rc3 {[%clk 0:00:15]} 49. Rd2 {[%clk 0:00:32]}  Qxa4 {[%clk 0:00:13]} 50. Rd8 {[%clk 0:00:26]}  Rc2 {[%clk 0:00:11]} 51. Rd2 {[%clk 0:00:26]}  Rxd2 {[%clk 0:00:11]} 52. Qxd2 {[%clk 0:00:27]}  Qxb5 {[%clk 0:00:11]} 53. Qd4 {[%clk 0:00:27]}  Qc5 {[%clk 0:00:11]} 54. Qd8 {[%clk 0:00:27]}  a5 {[%clk 0:00:11]} 55. Kh3 {[%clk 0:00:25]}  a4 {[%clk 0:00:11]} 56. Kh4 {[%clk 0:00:25]}  a3 {[%clk 0:00:10]} 57. Kg5 {[%clk 0:00:25]}  Nh7+ {[%clk 0:00:10]} 58. Kh5 {[%clk 0:00:26]}  Qf8 {[%clk 0:00:08]} 59. Qd4+ {[%clk 0:00:25]}  Nf6+ {[%clk 0:00:09]} 60. Kg5 {[%clk 0:00:25]}  Qe7 {[%clk 0:00:08]} 61. Bd1 {[%clk 0:00:24]}  a2 {[%clk 0:00:08]} 62. Bb3 {[%clk 0:00:24]}  Kf8 {[%clk 0:00:01]} 63. Qxf6 {[%clk 0:00:23]}  Qxf6+ {[%clk 0:00:01]} 64. Kxf6 {[%clk 0:00:24]}  a1=Q+ {[%clk 0:00:02]} 65. Kg5 {[%clk 0:00:24]}  Qb2 {[%clk 0:00:03]} 66. Bd1 {[%clk 0:00:24]}  Qg7+ {[%clk 0:00:04]} 67. Kh4 {[%clk 0:00:23]}  Qc3 {[%clk 0:00:05]} 68. Bh5 {[%clk 0:00:23]}  Kg7 {[%clk 0:00:05]} 69. Kg5 {[%clk 0:00:23]}  b5 {[%clk 0:00:06]} 70. Kh4 {[%clk 0:00:24]}  b4 {[%clk 0:00:07]} 71. g4 {[%clk 0:00:25]}  Qd2 {[%clk 0:00:07]} 72. gxf5 {[%clk 0:00:24]}  Qxf4+ {[%clk 0:00:08]} 73. Kh3 {[%clk 0:00:24]}  Qxf5+ {[%clk 0:00:08]} 74. Bg4 {[%clk 0:00:24]}  Qe5 {[%clk 0:00:09]} 75. Bd1 {[%clk 0:00:24]}  b3 {[%clk 0:00:10]} 76. Bxb3 {[%clk 0:00:25]}  Qc3+ {[%clk 0:00:10]} 77. Kg4 {[%clk 0:00:26]}  Qxb3 {[%clk 0:00:11]} 78. Kh5 {[%clk 0:00:27]}  Qd5+ {[%clk 0:00:11]} 79. Kg4 {[%clk 0:00:27]}  Qe4+ {[%clk 0:00:12]} 80. Kh5 {[%clk 0:00:27]}  Qf5+ {[%clk 0:00:12]} 81. Kh4 {[%clk 0:00:28]}  e5 {[%clk 0:00:13]} 82. Kg3 {[%clk 0:00:29]}  e4 {[%clk 0:00:13]} 83. Kg2 {[%clk 0:00:30]}  e3 {[%clk 0:00:14]} 84. Kg3 {[%clk 0:00:30]}  e2 {[%clk 0:00:14]} 85. Kg2 {[%clk 0:00:31]}  e1=Q {[%clk 0:00:14]} 86. Kh2 {[%clk 0:00:32]}  Qef2+ {[%clk 0:00:15]} 87. Kh1 {[%clk 0:00:32]}  Qh5# {[%clk 0:00:15]} 0-1


[Site "https://www.chess.com"]

[Event "Titled Tuesday Blitz December 06 Early 2022"]
[White "Grandelius, Nils"]
[Black "Piesik, Piotr"]
[WhiteFideId "1710400"]
[BlackFideId "1136194"]
[WhiteElo "2617"]
[BlackElo "2316"]
[Result "1/2-1/2"]
[Round "05"]
[TimeControl "180+1"]
[Date "2022.12.06"]
[WhiteClock "0:00:16"]
[BlackClock "0:00:08"]

1. Nf3 {[%clk 0:03:00]}  Nf6 {[%clk 0:02:57]} 2. c4 {[%clk 0:02:59]}  c6 {[%clk 0:02:56]} 3. e3 {[%clk 0:02:56]}  d5 {[%clk 0:02:54]} 4. Qc2 {[%clk 0:02:57]}  e6 {[%clk 0:02:49]} 5. b3 {[%clk 0:02:57]}  Bd6 {[%clk 0:02:48]} 6. Bb2 {[%clk 0:02:58]}  Nbd7 {[%clk 0:02:48]} 7. d4 {[%clk 0:02:58]}  O-O {[%clk 0:02:45]} 8. Bd3 {[%clk 0:02:58]}  b6 {[%clk 0:02:43]} 9. O-O {[%clk 0:02:55]}  Bb7 {[%clk 0:02:43]} 10. Nbd2 {[%clk 0:02:50]}  Qe7 {[%clk 0:02:40]} 11. e4 {[%clk 0:02:47]}  dxe4 {[%clk 0:02:35]} 12. Nxe4 {[%clk 0:02:48]}  Nxe4 {[%clk 0:02:35]} 13. Bxe4 {[%clk 0:02:49]}  Nf6 {[%clk 0:02:35]} 14. Bd3 {[%clk 0:02:42]}  c5 {[%clk 0:02:33]} 15. d5 {[%clk 0:02:43]}  exd5 {[%clk 0:02:32]} 16. Rfe1 {[%clk 0:02:40]}  Qd8 {[%clk 0:02:32]} 17. cxd5 {[%clk 0:02:10]}  Bxd5 {[%clk 0:02:14]} 18. Ng5 {[%clk 0:02:10]}  h6 {[%clk 0:02:08]} 19. Nh7 {[%clk 0:01:20]}  Nxh7 {[%clk 0:02:03]} 20. Bxh7+ {[%clk 0:01:21]}  Kh8 {[%clk 0:02:04]} 21. Rad1 {[%clk 0:01:16]}  Re8 {[%clk 0:01:59]} 22. Rxe8+ {[%clk 0:01:06]}  Qxe8 {[%clk 0:02:00]} 23. g3 {[%clk 0:01:01]}  Bb7 {[%clk 0:01:55]} 24. Qc3 {[%clk 0:00:51]}  f6 {[%clk 0:01:39]} 25. Rxd6 {[%clk 0:00:51]}  Kxh7 {[%clk 0:01:36]} 26. Qd3+ {[%clk 0:00:48]}  Kh8 {[%clk 0:01:30]} 27. Bc3 {[%clk 0:00:35]}  Qe4 {[%clk 0:01:28]} 28. Qxe4 {[%clk 0:00:34]}  Bxe4 {[%clk 0:01:29]} 29. Rd7 {[%clk 0:00:29]}  a5 {[%clk 0:01:26]} 30. h4 {[%clk 0:00:26]}  h5 {[%clk 0:01:24]} 31. Re7 {[%clk 0:00:22]}  Bd5 {[%clk 0:01:20]} 32. Rd7 {[%clk 0:00:21]}  Bf3 {[%clk 0:01:15]} 33. Rd3 {[%clk 0:00:20]}  Bg4 {[%clk 0:01:12]} 34. f3 {[%clk 0:00:18]}  Bf5 {[%clk 0:01:09]} 35. Rd5 {[%clk 0:00:19]}  Bg6 {[%clk 0:01:09]} 36. Rd6 {[%clk 0:00:18]}  b5 {[%clk 0:01:03]} 37. Rc6 {[%clk 0:00:18]}  b4 {[%clk 0:01:02]} 38. Bb2 {[%clk 0:00:19]}  Bb1 {[%clk 0:00:59]} 39. Rxc5 {[%clk 0:00:18]}  Bxa2 {[%clk 0:00:59]} 40. Rxh5+ {[%clk 0:00:18]}  Kg8 {[%clk 0:01:00]} 41. Rb5 {[%clk 0:00:16]}  Bxb3 {[%clk 0:00:59]} 42. Kf2 {[%clk 0:00:16]}  Rc8 {[%clk 0:00:47]} 43. Bd4 {[%clk 0:00:16]}  Rc4 {[%clk 0:00:44]} 44. Ke3 {[%clk 0:00:16]}  a4 {[%clk 0:00:43]} 45. g4 {[%clk 0:00:16]}  a3 {[%clk 0:00:40]} 46. g5 {[%clk 0:00:17]}  fxg5 {[%clk 0:00:37]} 47. hxg5 {[%clk 0:00:17]}  Bc2 {[%clk 0:00:30]} 48. Ra5 {[%clk 0:00:13]}  Kh7 {[%clk 0:00:26]} 49. Ra7 {[%clk 0:00:13]}  Kg6 {[%clk 0:00:15]} 50. Rxg7+ {[%clk 0:00:12]}  Kf5 {[%clk 0:00:16]} 51. Ra7 {[%clk 0:00:11]}  b3 {[%clk 0:00:12]} 52. Rxa3 {[%clk 0:00:09]}  Rxd4 {[%clk 0:00:09]} 53. Ra5+ {[%clk 0:00:09]}  Kg6 {[%clk 0:00:09]} 54. Kxd4 {[%clk 0:00:09]}  b2 {[%clk 0:00:09]} 55. Rb5 {[%clk 0:00:09]}  b1=Q {[%clk 0:00:09]} 56. Rxb1 {[%clk 0:00:10]}  Bxb1 {[%clk 0:00:10]} 57. f4 {[%clk 0:00:11]}  Bf5 {[%clk 0:00:10]} 58. Ke3 {[%clk 0:00:12]}  Kf7 {[%clk 0:00:09]} 59. Kd4 {[%clk 0:00:12]}  Bg6 {[%clk 0:00:10]} 60. Ke5 {[%clk 0:00:13]}  Bc2 {[%clk 0:00:09]} 61. f5 {[%clk 0:00:14]}  Kg7 {[%clk 0:00:09]} 62. Kf4 {[%clk 0:00:14]}  Kf7 {[%clk 0:00:10]} 63. Kg4 {[%clk 0:00:15]}  Kg7 {[%clk 0:00:10]} 64. Kf4 {[%clk 0:00:16]}  Kf7 {[%clk 0:00:11]} 65. Ke5 {[%clk 0:00:17]}  Kg7 {[%clk 0:00:11]} 66. Ke6 {[%clk 0:00:17]}  Bb3+ {[%clk 0:00:10]} 67. Ke7 {[%clk 0:00:18]}  Bc4 {[%clk 0:00:09]} 68. g6 {[%clk 0:00:14]}  Bb3 {[%clk 0:00:08]} 69. f6+ {[%clk 0:00:15]}  Kxg6 {[%clk 0:00:08]} 70. f7 {[%clk 0:00:16]}  Bxf7 {[%clk 0:00:08]} 1/2-1/2


[Site "https://www.chess.com"]

[Event "Titled Tuesday Blitz December 06 Early 2022"]
[White "Guzman Moneo, Alberto"]
[Black "Schekachikhin, Maksim"]
[WhiteFideId "2209616"]
[BlackFideId "24177830"]
[WhiteElo "2157"]
[BlackElo "2272"]
[Result "1-0"]
[Round "05"]
[TimeControl "180+1"]
[Date "2022.12.07"]
[WhiteClock "0:00:32"]
[BlackClock "0:01:30"]

1. c4 {[%clk 0:03:00]}  e6 {[%clk 0:02:58]} 2. Nf3 {[%clk 0:03:00]}  f5 {[%clk 0:02:57]} 3. Nc3 {[%clk 0:02:59]}  Nf6 {[%clk 0:02:57]} 4. g3 {[%clk 0:02:57]}  b6 {[%clk 0:02:57]} 5. Bg2 {[%clk 0:02:57]}  Bb7 {[%clk 0:02:57]} 6. a3 {[%clk 0:02:53]}  a5 {[%clk 0:02:56]} 7. Rb1 {[%clk 0:02:52]}  Be7 {[%clk 0:02:54]} 8. b4 {[%clk 0:02:51]}  axb4 {[%clk 0:02:53]} 9. axb4 {[%clk 0:02:52]}  O-O {[%clk 0:02:53]} 10. O-O {[%clk 0:02:52]}  Ne4 {[%clk 0:02:44]} 11. Nxe4 {[%clk 0:02:40]}  Bxe4 {[%clk 0:02:43]} 12. d3 {[%clk 0:02:37]}  Bb7 {[%clk 0:02:43]} 13. Qb3 {[%clk 0:02:31]}  Nc6 {[%clk 0:02:39]} 14. Bd2 {[%clk 0:02:28]}  Bf6 {[%clk 0:02:37]} 15. Bc3 {[%clk 0:02:26]}  Bxc3 {[%clk 0:02:29]} 16. Qxc3 {[%clk 0:02:27]}  Qe7 {[%clk 0:02:27]} 17. b5 {[%clk 0:02:05]}  Nd8 {[%clk 0:02:24]} 18. Ra1 {[%clk 0:02:02]}  Nf7 {[%clk 0:02:24]} 19. Rxa8 {[%clk 0:02:00]}  Rxa8 {[%clk 0:02:24]} 20. Ra1 {[%clk 0:02:01]}  Qf6 {[%clk 0:02:16]} 21. Qxf6 {[%clk 0:01:51]}  gxf6 {[%clk 0:02:15]} 22. Rxa8+ {[%clk 0:01:51]}  Bxa8 {[%clk 0:02:16]} 23. Nd4 {[%clk 0:01:36]}  Bxg2 {[%clk 0:02:15]} 24. Kxg2 {[%clk 0:01:37]}  Kf8 {[%clk 0:02:14]} 25. f4 {[%clk 0:01:32]}  Ke7 {[%clk 0:02:14]} 26. Kf3 {[%clk 0:01:30]}  Kd6 {[%clk 0:02:14]} 27. Nb3 {[%clk 0:01:30]}  Nd8 {[%clk 0:02:10]} 28. e4 {[%clk 0:01:15]}  fxe4+ {[%clk 0:02:05]} 29. dxe4 {[%clk 0:01:13]}  e5 {[%clk 0:02:04]} 30. f5 {[%clk 0:01:12]}  c6 {[%clk 0:02:03]} 31. Kg4 {[%clk 0:01:08]}  Ke7 {[%clk 0:01:56]} 32. Kh5 {[%clk 0:00:55]}  Kf7 {[%clk 0:01:54]} 33. c5 {[%clk 0:00:48]}  bxc5 {[%clk 0:01:51]} 34. bxc6 {[%clk 0:00:39]}  Nxc6 {[%clk 0:01:45]} 35. Nxc5 {[%clk 0:00:38]}  d6 {[%clk 0:01:43]} 36. Nb7 {[%clk 0:00:37]}  d5 {[%clk 0:01:40]} 37. exd5 {[%clk 0:00:34]}  Nb4 {[%clk 0:01:30]} 38. d6 {[%clk 0:00:32]} 1-0


[Site "https://www.chess.com"]